Workbook

Sheet Notes on Use
C9: Data entry - not protected (however range not checked).
C10: Contains an expression - protected but visible.
C11: Heading - protected
C12: Heading - protected

Sheet Maturity
M1: SAMPLES
A2: Information | B2: Value | C2: Units | D2: 1 | E2: 2 | F2: 3 | G2: 4 | H2: 5 | I2: 6 | J2: 7 | K2: 8 | L2: 9 | M2: 10 | N2: 11 | O2: 12 | P2: 13 | Q2: 14 | R2: 15 | S2: 16 | T2: 17 | U2: 18 | V2: 19 | W2: 20
B3: Person
B4: Date
B5: Cultivar
B6: Block/Unit
A7: Sample
B8: Bunches (y) or berries (n)? | C8: y/n | D8: y
B9: Weight | C9: kg | D9: 16
B10: Sample Bunch count | C10: count | D10: 25
B11: Bunch wt | C11: g | D11: =IF(OR(D8="",D9="",D10=""),"",D9*1000/D10) -> 640 | E11: =IF(OR(E8="",E9="",E10=""),"",E9*1000/E10) -> 
A12: Subsample
B13: Berry number/sample | C13: count | D13: 200
B14: Berry sample weight | C14: g | D14: 205
B15: Av. berry weight | C15: g | D15: =IF(OR(D13="",D14=""),"",D14/D13) -> 1.025 | E15: =IF(OR(E13="",E14=""),"",E14/E13) -> 
A16: Temp Corrected | B16: °Brix
B17: °Baumé | D17: 12.5 | E17: 11.3
B18: Juice Temperature °C | D18: 25 | E18: 23
B19: °Baumé - corrected | D19: =IF(D17="","",IF(OR(D18<15,D18>25,D18=""),"Temp outside range",(D17+(-1+D18*0.05)))) -> 12.75 | E19: =IF(E17="","",IF(OR(E18<15,E18>25,E18=""),"T ??",(E17+(-1+E18*0.05)))) -> 11.45 | F19: =IF(F17="","",IF(OR(F18<15,F18>25,F18=""),"T ??",(F17+(-1+F18*0.05)))) -> 
B20: pH
A21: A | B21: Titratable acidity | C21: =IF(A21="","",IF(A21="A","g tartaric acid/L",IF(A21="B","g tartaric acid /100 mL",IF(A21="C","g H2SO4 eq./L","Error")))) -> g tartaric acid/L | D21: =IF($A$21="","Enter method code",IF($A$21="A",TA!$I2,IF($A$21="B",TA!$J2,IF($A$21="C",TA!$K2,"A, B or C?")))) -> 8.625 | E21: =IF($A$21="","Enter Code",IF($A$21="A",TA!$I3,IF($A$21="B",TA!$J3,IF($A$21="C",TA!$K3,"A, B or C?")))) -> 6.45 | F21: =IF($A$21="","Enter Code",IF($A$21="A",TA!$I4,IF($A$21="B",TA!$J4,IF($A$21="C",TA!$K4,"A, B or C?")))) ->  | G21: =IF($A$21="","Enter Code",IF($A$21="A",TA!$I5,IF($A$21="B",TA!$J5,IF($A$21="C",TA!$K5,"A, B or C?")))) ->  | H21: =IF($A$21="","Enter Code",IF($A$21="A",TA!$I6,IF($A$21="B",TA!$J6,IF($A$21="C",TA!$K6,"A, B or C?")))) ->  | I21: =IF($A$21="","Enter Code",IF($A$21="A",TA!$I7,IF($A$21="B",TA!$J7,IF($A$21="C",TA!$K7,"A, B or C?")))) ->  | J21: =IF($A$21="","Enter Code",IF($A$21="A",TA!$I8,IF($A$21="B",TA!$J8,IF($A$21="C",TA!$K8,"A, B or C?")))) ->  | K21: =IF($A$21="","Enter Code",IF($A$21="A",TA!$I9,IF($A$21="B",TA!$J9,IF($A$21="C",TA!$K9,"A, B or C?")))) ->  | L21: =IF($A$21="","Enter Code",IF($A$21="A",TA!$I10,IF($A$21="B",TA!$J10,IF($A$21="C",TA!$K10,"A, B or C?")))) ->  | M21: =IF($A$21="","Enter Code",IF($A$21="A",TA!$I11,IF($A$21="B",TA!$J11,IF($A$21="C",TA!$K11,"A, B or C?")))) ->  | N21: =IF($A$21="","Enter Code",IF($A$21="A",TA!$I12,IF($A$21="B",TA!$J12,IF($A$21="C",TA!$K12,"A, B or C?")))) ->  | O21: =IF($A$21="","Enter Code",IF($A$21="A",TA!$I13,IF($A$21="B",TA!$J13,IF($A$21="C",TA!$K13,"A, B or C?")))) ->  | P21: =IF($A$21="","Enter Code",IF($A$21="A",TA!$I14,IF($A$21="B",TA!$J14,IF($A$21="C",TA!$K14,"A, B or C?")))) ->  | Q21: =IF($A$21="","Enter Code",IF($A$21="A",TA!$I15,IF($A$21="B",TA!$J15,IF($A$21="C",TA!$K15,"A, B or C?")))) ->  | R21: =IF($A$21="","Enter Code",IF($A$21="A",TA!$I16,IF($A$21="B",TA!$J16,IF($A$21="C",TA!$K16,"A, B or C?")))) ->  | S21: =IF($A$21="","Enter Code",IF($A$21="A",TA!$I17,IF($A$21="B",TA!$J17,IF($A$21="C",TA!$K17,"A, B or C?")))) ->  | T21: =IF($A$21="","Enter Code",IF($A$21="A",TA!$I18,IF($A$21="B",TA!$J18,IF($A$21="C",TA!$K18,"A, B or C?")))) ->  | U21: =IF($A$21="","Enter Code",IF($A$21="A",TA!$I19,IF($A$21="B",TA!$J19,IF($A$21="C",TA!$K19,"A, B or C?")))) ->  | V21: =IF($A$21="","Enter Code",IF($A$21="A",TA!$I20,IF($A$21="B",TA!$J20,IF($A$21="C",TA!$K20,"A, B or C?")))) ->  | W21: =IF($A$21="","Enter Code",IF($A$21="A",TA!$I21,IF($A$21="B",TA!$J21,IF($A$21="C",TA!$K21,"A, B or C?")))) -> 
A22: Press sample
B23: Press sample wt | C23: kg | D23: 85
B24: Juice wt | C24: kg | D24: 45
B25: Juice volume | C25: L | D25: =IF(OR(D24="",D17=""),"",D24/(0.9982+0.008412*D19)) -> 40.70729375 | E25: =IF(OR(E24="",E17=""),"",E24/(0.9904+0.008367*E19)) -> 
B26: Yield (L/1000 kg) | D26: =IF(OR(D23="",D24=""),"",D24*1000/D23) -> 529.4117647 | E26: =IF(OR(E23="",E24=""),"",E24*1000/E23) -> 
B28: Comments

Sheet WhiteWine
A1: White wines | D1: Ideal values
A2: Date | E2: 2013-04-12 | F2: 2013-04-15
A3: Day | E3: 0 | F3: =IF(OR(E2="",F2=""),"",F2-E2) -> 3 | G3: =IF(OR(F2="",G2=""),"",G2-F2) -> 
A4: Time | C4: 00:00:00
A5: Cultivar
A6: Ferment code
A8: pH | D8: 3.1 to 3.4
A9: Temp | C9: (°C) | D9: >15,<20 | E9: 16
A10: °Brix | C10: (ref) | D10: 22.5 to 24.5
A11: °Be | C11: (hydr) | D11: 12.5 to 14.0 | E11: 7
A12: °Be | C12: (calc) | E12: =IF(OR(E9="",E11=""),"",E11+(-1+E9*0.05)) -> 6.8 | F12: =IF(OR(F9="",F11=""),"",F11+(-1+F9*0.05)) ->  | Q12: =IF(OR(Q9="",Q11=""),"",Q11+(-1+Q9*0.05)) ->  | R12: =IF(OR(R9="",R11=""),"",R11+(-1+R9*0.05)) ->  | S12: =IF(OR(S9="",S11=""),"",S11+(-1+S9*0.05)) ->  | T12: =IF(OR(T9="",T11=""),"",T11+(-1+T9*0.05)) ->  | U12: =IF(OR(U9="",U11=""),"",U11+(-1+U9*0.05)) ->  | V12: =IF(OR(V9="",V11=""),"",V11+(-1+V9*0.05)) -> 
A13: TA | B13: A | C13: =IF(B13="","",IF(B13="A","g/ L",IF(B13="B","g/100mL",IF(B13="C","g/L Eu","Value?")))) -> g/ L | D13: 5.5 to 7.0 | E13: =IF($B$13="A",TA!$I2,IF($B$13="B",TA!$J2,IF($B$13="C",TA!$K2,"Enter code"))) -> 8.625 | F13: =IF($B$13="A",TA!$I3,IF($B$13="B",TA!$J3,IF($B$13="C",TA!$K3,"Enter code"))) -> 6.45 | G13: =IF($B$13="A",TA!$I4,IF($B$13="B",TA!$J4,IF($B$13="C",TA!$K4,"Enter code"))) ->  | H13: =IF($B$13="A",TA!$I5,IF($B$13="B",TA!$J5,IF($B$13="C",TA!$K5,"Enter code"))) ->  | I13: =IF($B$13="A",TA!$I6,IF($B$13="B",TA!$J6,IF($B$13="C",TA!$K6,"Enter code"))) ->  | J13: =IF($B$13="A",TA!$I7,IF($B$13="B",TA!$J7,IF($B$13="C",TA!$K7,"Enter code"))) ->  | K13: =IF($B$13="A",TA!$I8,IF($B$13="B",TA!$J8,IF($B$13="C",TA!$K8,"Enter code"))) ->  | L13: =IF($B$13="A",TA!$I9,IF($B$13="B",TA!$J9,IF($B$13="C",TA!$K9,"Enter code"))) ->  | M13: =IF($B$13="A",TA!$I10,IF($B$13="B",TA!$J10,IF($B$13="C",TA!$K10,"Enter code"))) ->  | N13: =IF($B$13="A",TA!$I12,IF($B$13="B",TA!$J12,IF($B$13="C",TA!$K12,"Enter code"))) ->  | O13: =IF($B$13="A",TA!$I13,IF($B$13="B",TA!$J13,IF($B$13="C",TA!$K13,"Enter code"))) ->  | P13: =IF($B$13="A",TA!$I14,IF($B$13="B",TA!$J14,IF($B$13="C",TA!$K14,"Enter code"))) ->  | Q13: =IF($B$13="A",TA!$I15,IF($B$13="B",TA!$J15,IF($B$13="C",TA!$K15,"Enter code"))) ->  | R13: =IF($B$13="A",TA!$I16,IF($B$13="B",TA!$J16,IF($B$13="C",TA!$K16,"Enter code"))) ->  | S13: =IF($B$13="A",TA!$I17,IF($B$13="B",TA!$J17,IF($B$13="C",TA!$K17,"Enter code"))) ->  | T13: =IF($B$13="A",TA!$I18,IF($B$13="B",TA!$J18,IF($B$13="C",TA!$K18,"Enter code"))) ->  | U13: =IF($B$13="A",TA!$I19,IF($B$13="B",TA!$J19,IF($B$13="C",TA!$K19,"Enter code"))) ->  | V13: =IF($B$13="A",TA!$I20,IF($B$13="B",TA!$J20,IF($B$13="C",TA!$K20,"Enter code"))) -> 
A14: Free SO2 | C14: (mg L-1) | D14: 35
A15: Bound SO2 | C15: (mg L-1) | D15: 65 to 85
A16: Total SO2 | C16: (mg L-1) | D16: 100 to 120 | E16: =IF(OR(E15="",E14=""),"",E15+E14) ->  | F16: =IF(OR(F15="",F14=""),"",F15+F14) ->  | Q16: =IF(OR(Q15="",Q14=""),"",Q15+Q14) -> 
A17: NH4+ | C17: (mg L-1) | D17: 140
A18: FAN | C18: (mg L-1) | D18: 165
A19: Phenols/Tannins | C19: (mg L-1)
A20: Malic Acid | C20: (mg L-1)
A21: Tartaric : Malic | C21: ratio | D21: 2:1 to 4:1 | E21: =IF(OR(E20="",0),"",(E13-E20)/E20) ->  | F21: =IF(OR(F20="",0),"",(F13-F20)/F20) ->  | Q21: =IF(OR(Q20="",0),"",(Q13-Q20)/Q20) -> 
A22: K+ | C22: (mg L-1)
A24: Additions
A25: Tartaric acid | C25: (mg L-1)
A26: Malic acid | C26: (mg L-1)
A27: Citric acid | C27: (mg L-1)
A28: Ascorbic acid | C28: (mg L-1)
A29: Bentonite | C29: (mg L-1)
A30: Copper | C30: (mg L-1)
A31: PVPP | C31: (mg L-1)
A32: Other | C32: (mg L-1)
A33: Yeast | C33: (mg L-1)
A34: Malolactic culture | C34: (mg L-1)
A36: Sensory
A37: Comments

Sheet RedWine
A1: Red cultivars | D1: Ideal values
A2: Person
A3: Date | E3: 2013-05-15 | F3: 2013-05-17
A4: Days | E4: 0 | F4: =IF(OR(E3="",F3=""),"",F3-E3) -> 2 | G4: =IF(OR(F3="",G3=""),"",G3-F3) -> 
A5: Time | C5: 00:00:00
A6: Cultivar
A7: Ferment code
A9: pH | D9: 3.3 to 3.5
A10: Temp | C10: (°C)
A11: °Brix | C11: (refr) | D11: 22.5 to 24.5
A12: °Be | C12: (hydr) | D12: 12.5 to 14.0
A13: °Be | C13: (calc)
A14: °Be | C14: (table)
A15: TA [from TA sheet] | B15: A | C15: =IF(B15="A","(g /L)",IF(B15="B","(g/100mL)",IF(B15="C","(g/L Eu)","Check code"))) -> (g /L) | D15: 5.5 to 7.0 | E15: =IF($B$15="A",TA!$I2,IF(B15="B",TA!$J2,IF(B15="C",TA!$K2,"Enter code"))) -> 8.625 | F15: =IF($B$15="A",TA!$I3,IF(C15="B",TA!$J3,IF(C15="C",TA!$K3,"Enter code"))) -> 6.45 | G15: =IF($B$15="A",TA!$I4,IF(D15="B",TA!$J4,IF(D15="C",TA!$K4,"Enter code"))) ->  | H15: =IF($B$15="A",TA!$I5,IF(E15="B",TA!$J5,IF(E15="C",TA!$K5,"Enter code"))) ->  | I15: =IF($B$15="A",TA!$I6,IF(F15="B",TA!$J6,IF(F15="C",TA!$K6,"Enter code"))) ->  | J15: =IF($B$15="A",TA!$I7,IF(G15="B",TA!$J7,IF(G15="C",TA!$K7,"Enter code"))) ->  | K15: =IF($B$15="A",TA!$I8,IF(H15="B",TA!$J8,IF(H15="C",TA!$K8,"Enter code"))) ->  | L15: =IF($B$15="A",TA!$I9,IF(I15="B",TA!$J9,IF(I15="C",TA!$K9,"Enter code"))) ->  | M15: =IF($B$15="A",TA!$I10,IF(J15="B",TA!$J10,IF(J15="C",TA!$K10,"Enter code"))) ->  | N15: =IF($B$15="A",TA!$I11,IF(K15="B",TA!$J11,IF(K15="C",TA!$K11,"Enter code"))) ->  | O15: =IF($B$15="A",TA!$I12,IF(L15="B",TA!$J12,IF(L15="C",TA!$K12,"Enter code"))) ->  | P15: =IF($B$15="A",TA!$I13,IF(M15="B",TA!$J13,IF(M15="C",TA!$K13,"Enter code"))) ->  | Q15: =IF($B$15="A",TA!$I14,IF(N15="B",TA!$J14,IF(N15="C",TA!$K14,"Enter code"))) ->  | R15: =IF($B$15="A",TA!$I15,IF(O15="B",TA!$J15,IF(O15="C",TA!$K15,"Enter code"))) ->  | S15: =IF($B$15="A",TA!$I16,IF(P15="B",TA!$J16,IF(P15="C",TA!$K16,"Enter code"))) ->  | T15: =IF($B$15="A",TA!$I17,IF(Q15="B",TA!$J17,IF(Q15="C",TA!$K17,"Enter code"))) ->  | U15: =IF($B$15="A",TA!$I18,IF(R15="B",TA!$J18,IF(R15="C",TA!$K18,"Enter code"))) ->  | V15: =IF($B$15="A",TA!$I19,IF(S15="B",TA!$J19,IF(S15="C",TA!$K19,"Enter code"))) ->  | W15: =IF($B$15="A",TA!$I20,IF(T15="B",TA!$J20,IF(T15="C",TA!$K20,"Enter code"))) ->  | X15: =IF($B$15="A",TA!$I21,IF(U15="B",TA!$J21,IF(U15="C",TA!$K21,"Enter code"))) -> 
A16: Free SO2 | C16: (mg L-1) | D16: 20
A17: Bound SO2 | C17: (mg L-1) | D17: 30 to 50
A18: Total SO2 | C18: (mg L-1) | D18: 50 to 70 | E18: =IF(OR(E16="",E17=""),"",E17+E16) ->  | F18: =IF(OR(F16="",F17=""),"",F17+F16) ->  | Q18: =IF(OR(Q16="",Q17=""),"",Q17+Q16) -> 
A19: NH4+ | C19: (mg L-1) | D19: 50
A20: FAN | C20: (mg L-1) | D20: 110
A21: Antho | C21: (mg L-1) | D21: 1.1 to 2.0
A22: Malic Acid | C22: (mg L-1)
A23: Tartaric : Malic | C23: ratio | D23: 2:1 to 4:1 | E23: =IF(OR(E22="",0),"",(E15-E22)/E22) ->  | F23: =IF(OR(F22="",0),"",(F15-F22)/F22) ->  | Q23: =IF(OR(Q22="",0),"",(Q15-Q22)/Q22) -> 
A24: K+ | C24: (mg L-1)
A26: Additions
A27: Tartaric acid | C27: (mg L-1)
A28: Malic acid | C28: (mg L-1)
A29: Citric acid | C29: (mg L-1)
A30: Ascorbic acid | C30: (mg L-1)
A31: Bentonite | C31: (mg L-1)
A32: Copper | C32: (mg L-1)
A33: PVPP | C33: (mg L-1)
A34: Other | C34: (mg L-1)
A35: Yeast | C35: (mg L-1)
A36: Malolactic culture | C36: (mg L-1)
A38: Sensory
A39: Comments

Sheet TA
A1: Person | B1: Date | C1: Sample | D1: Sample volume (mL) | E1: Start reading mL | F1: End mL | G1: Titre mL | H1: mol/L (NaOH) | I1: TA g L-1 | J1: TA g/100 mL | K1: TA g/L H2SO4
D2: 10 | F2: 11.5 | G2: =IF(F2=0,"",F2-E2) -> 11.5 | H2: 0.1 | I2: =IF(OR($F2="",0),"",75*$H2*$G2/$D2) -> 8.625 | J2: =IF($I2="","",$I2/10) -> 0.8625 | K2: =IF(OR($F2="",0),"",49*$H2*$G2/$D2) -> 5.635
D3: 10 | E3: 11.5 | F3: 20.1 | G3: =IF(F3=0,"",F3-E3) -> 8.6 | H3: 0.1 | I3: =IF(OR($F3="",0),"",75*$H3*$G3/$D3) -> 6.45 | J3: =IF($I3="","",$I3/10) -> 0.645 | K3: =IF(OR($F3="",0),"",49*$H3*$G3/$D3) -> 4.214
D4: 10 | H4: 0.1
D5: 10 | H5: 0.1
D6: 10 | H6: 0.1
D7: 10 | H7: 0.1
D8: 10 | H8: 0.1
D9: 10 | H9: 0.1
D10: 10 | H10: 0.1
D11: 10 | H11: 0.1
D12: 10 | G12: =IF(F12=0,"",F12-E12) ->  | H12: 0.1
D13: 10 | H13: 0.1
D14: 10 | G14: =IF(F14=0,"",F14-E14) ->  | H14: 0.1
D15: 10 | H15: 0.1
D16: 10 | H16: 0.1
D17: 10 | H17: 0.1
D18: 10 | H18: 0.1
D19: 10 | H19: 0.1
D20: 10 | H20: 0.1
D21: 10 | H21: 0.1

Sheet SO2
A1: Date | B1: Person | C1: Sample | D1: code | E1: Initial vol | F1: Final vol | G1: Free Titre | H1: Free SO2 | I1: Initial vol | J1: Final vol | K1: Bound Titre | L1: Bound SO2 | M1: Total SO2
E2: 0 | F2: 0.5 | G2: =IF(F2="","",F2-E2) -> 0.5 | H2: =IF(G2="","",G2*16) -> 8 | I2: 0.5 | J2: 1.25 | K2: =IF(J2="","",J2-I2) -> 0.75 | L2: =IF(K2="","",K2*16) -> 12 | M2: =IF(OR(H2="",L2=""),"",H2+L2) -> 20
G3: =IF(F3="","",F3-E3) ->  | H3: =IF(G3="","",G3*16) ->  | K3: =IF(J3="","",J3-I3) ->  | L3: =IF(K3="","",K3*16) ->  | M3: =IF(OR(H3="",L3=""),"",H3+L3) -> 
G13: =IF(F13="","",F13-E13) ->  | H13: =IF(G13="","",G13*16) ->  | K13: =IF(J13="","",J13-I13) ->  | L13: =IF(K13="","",K13*16) -> 

Sheet SO2titr
A1: Date | B1: Person | C1: Sample | D1: code | E1: Initial vol | F1: Final vol | G1: Free Titre | H1: Free SO2 | I1: Initial vol | J1: Final vol | K1: Total Titre | L1: Bound SO2 | M1: Total SO2
E2: 0 | F2: 1.5 | G2: =IF(F2="","",F2-E2) -> 1.5 | H2: =IF(G2="","",G2*12.8) -> 19.2 | I2: 1.5 | J2: 3.25 | K2: =IF(J2="","",J2-I2) -> 1.75 | L2: =IF(K2="","",M2-H2) -> 36.8 | M2: =IF(K2="","",K2*32) -> 56
G3: =IF(F3="","",F3-E3) ->  | H3: =IF(G3="","",G3*12.8) ->  | K3: =IF(J3="","",J3-I3) ->  | L3: =IF(K3="","",M3-H3) ->  | M3: =IF(K3="","",K3*32) -> 

Sheet FAN
B2: Blank | C2: Amino N as L-isoleucine1 (mg/L)
B3: Buffer | C3: NOPA
A4: Solution (volume) | C4: 0 | D4: 28 | E4: 56 | F4: 84 | G4: 112 | H4: 140
A5: Distilled water (μL) | B5: 50 | C5: 50 | D5: 40 | E5: 30 | F5: 20 | G5: 10 | H5: 0
A6: 10 mM L-Isoeucine std (μL) | B6: - | C6: - | D6: 10 | E6: 20 | F6: 30 | G6: 40 | H6: 50
A7: NOPA (mL) | B7: - | C7: 3 | D7: 3 | E7: 3 | F7: 3 | G7: 3 | H7: 3
A8: Buffer (mL) | B8: 3 | C8: - | D8: - | E8: - | F8: - | G8: - | H8: -
A9: OD | B9: 0 | C9: 0.002 | D9: 0.105 | E9: 0.18 | F9: 0.31 | G9: 0.408 | H9: 0.509
A10: Corrected OD | C10: 0 | D10: =D9-$C$9 -> 0.103 | E10: =E9-$C$9 -> 0.178 | F10: 0.308 | G10: 0.406 | H10: 0.507
C11: a | D11: b | E11: r2 | F11: <0.95?
A12: Equation | B12: y= | C12: =INTERCEPT(C10:H10,C4:H4) -> -0.004952380952 | D12: =SLOPE(C10:H10,C4:H4) -> 0.003646938776 | E12: =(CORREL(C9:H9,C4:H4))^2 -> 0.9969236196 | F12: =IF(OR(E12<0.95,ABS(C12)-0.01>0),"INVALID","OK") -> OK
A14: Solution | B14: NOPA | D14: Sample 1 | F14: Sample 2 | H14: Sample 3 | J14: Sample 4 | L14: Sample 5 | N14: Sample 6 | P14: Sample 7 | R14: Sample 8 | T14: Sample 9 | V14: Sample 10
B15: blank | C15: test | D15: blank | E15: test | F15: blank | G15: test | H15: blank | I15: test | J15: blank | K15: test | L15: blank | M15: test | N15: blank | O15: test | P15: blank | Q15: test | R15: blank | S15: test | T15: blank | U15: test | V15: blank | W15: test
A16: Distilled water (μL) | C16: 50 | D16: - | E16: - | F16: - | G16: - | H16: - | I16: - | J16: - | K16: - | L16: - | M16: - | N16: - | O16: - | P16: - | Q16: - | R16: - | S16: - | T16: - | U16: - | V16: - | W16: -
A17: Sample (μL) | C17: - | D17: 50 | E17: 50 | F17: 50 | G17: 50 | H17: 50 | I17: 50 | J17: 50 | K17: 50 | L17: 50 | M17: 50 | N17: 50 | O17: 50 | P17: 50 | Q17: 50 | R17: 50 | S17: 50 | T17: 50 | U17: 50 | V17: 50 | W17: 50
A18: Buffer (mL) | C18: - | D18: 3 | E18: - | F18: 3 | G18: - | H18: 3 | I18: - | J18: 3 | K18: - | L18: 3 | M18: - | N18: 3 | O18: - | P18: 3 | Q18: - | R18: 3 | S18: - | T18: 3 | U18: - | V18: 3 | W18: -
A19: NOPA (mL) | C19: 3 | D19: - | E19: 3 | F19: - | G19: 3 | H19: - | I19: 3 | J19: - | K19: 3 | L19: - | M19: 3 | N19: - | O19: 3 | P19: - | Q19: 3 | R19: - | S19: 3 | T19: - | U19: 3 | V19: - | W19: 3
A20: OD | C20: 0 | D20: 0.005 | E20: 0.034 | F20: 0.007 | G20: 0.317
A21: Corrected OD | E21: =E20-D20 -> 0.029 | G21: =G20-F20 -> 0.31 | I21: =I20-H20 -> 0 | K21: =K20-J20 -> 0 | M21: =M20-L20 -> 0 | O21: =O20-N20 -> 0 | Q21: =Q20-P20 -> 0 | S21: =S20-R20 -> 0 | U21: =U20-T20 -> 0 | W21: =W20-V20 -> 0
A22: Dilution Factor | E22: 1 | G22: 1 | I22: 1 | K22: 1 | M22: 1 | O22: 1 | Q22: 1 | S22: 1 | U22: 1 | W22: 1
A23: Estimated Amino N (mg/L) | E23: =(E21/$D$12)*E22 -> 7.95187465 | G23: =((G21-$C$12)/$D$12)*G22 -> 86.36075359 | I23: =((I21)/$D$12)*I22 -> 0 | K23: =((K21)/$D$12)*K22 -> 0 | M23: =((M21)/$D$12)*M22 -> 0 | O23: =((O21)/$D$12)*O22 -> 0 | Q23: =((Q21)/$D$12)*Q22 -> 0 | S23: =((S21)/$D$12)*S22 -> 0 | U23: =((U21)/$D$12)*U22 -> 0 | W23: =((W21)/$D$12)*W22 -> 0

Sheet NH4
H1: Protocol - A: R-Biopharm
H2: Pipette into cuvettes | I2: Blank (mL) | J2: Standard (mL) | K2: Sample (mL)
H3: Reaction mixture 2 | I3: 1 | J3: 1 | K3: 1
H4: Sample solution | I4: --- | J4: --- | K4: 0.1
H5: Standard solution | I5: --- | J5: 0.1 | K5: ---
H6: DI water | I6: 2 | J6: 1.9 | K6: 1.9
H7: Mix and read absorbances (A1) after 5 mins @ 20 - 25°C.
H8: Solution 3 | I8: 0.02 | J8: 0.02 | K8: 0.02
H9: Mix and read absorbances (A2) after 20 mins.
H11: Protocol - B: Generic | J11: Nucleotide | K11: NADPH
H12: Pipette into cuvettes | I12: Blank (mL) | J12: Standard (mL) | K12: Sample (mL)
H13: Distilled water | I13: 2.1 | J13: 2 | K13: 2
H14: Sample solution | I14: --- | J14: 0.1 | K14: 0.1
H15: Solution 1 (buffer) | I15: 0.3 | J15: 0.3 | K15: 0.3
H16: Solution 2 (NADPH) | I16: 0.2 | J16: 0.2 | K16: 0.2
H17: Mix and read absorbances (A1) after 2 mins @ 20 - 25°C.
H18: Solution 3 | I18: 0.02 | J18: 0.02 | K18: 0.02
H19: Mix and read absorbances (A2) after 5 mins. If not stable, re-read at intervals until stable.
I20: Tube volume less sample = | K20: =K13+K15+K16+K18 -> 2.52
B22: Enter either 365 or 340 | K22: Enter std NH3 value (mg/L)
A23: Wavelength | B23: 365 | C23: Extinction coef. = | E23: =IF(B23=340,6.3,IF(AND(A25="A",B23=365),3.4,IF(AND(B23=365,K11="NADH"),3.4,IF(AND(B23=365,K11="NADPH"),3.5,"ERROR")))) -> 3.5 | F23: Tube volume (less sample) = | I23: =IF($A$25="A",2.92,IF(A25="B",$K$20,"?Protocol")) -> 2.52 | J23: Standard = | K23: 41.5
A24: Protocol: Enter A or B | B24: Date | C24: Sample | D24: Sample volume (mL) | E24: Dilution (F) | F24: A1 | G24: A2 | H24: (A1 - A2) | I24: ΔA (A1 - A2)sample - (A1 - A2)blank | J24: NH3 mg L-1 | K24: Corrected for dilution (mg/L) | L24: Range of values too high?
A25: B | C25: Blank | F25: 0.001 | G25: 0.001 | H25: =F25-G25 -> 0
C26: Standard | D26: 0.1 | E26: 1 | F26: 0.5 | G26: 0.16 | H26: =F26-G26 -> 0.34 | I26: =H26-$H$25 -> 0.34 | J26: =IF($I26="","",IF(OR($A$25="A",$A$25="B"),($I26*($I$23+$D26)*17.03)/($D26*$E$23),"?Protocol")) -> 43.34378286 | K26: =IF($J26="","",$J26*$E26) -> 43.34378286 | L26: =CONCATENATE("Error = ",INT((($K26-$K$23)*100)/$K$23)," %") -> Error = 4 %
D27: 0.1 | E27: 10 | F27: 0.634 | G27: 0.454 | H27: =F27-G27 -> 0.18 | I27: =H27-$H$25 -> 0.18 | J27: =IF($I27="","",IF(OR($A$25="A",$A$25="B"),($I27*($I$23+$D27)*17.03)/($D27*$E$23),"?Protocol")) -> 22.94670857 | K27: =IF($J27="","",$J27*$E27) -> 229.4670857 | L27: =IF(H27="","",IF(AND($B$23=340,$H27>1),"Dilute",IF(AND($B$23=365,$H27>0.5), "Dilute","OK"))) -> OK
D28: 0.1 | E28: 10 | H28: =IF(OR(F28="",0),"",F28-G28) ->  | I28: =IF(H28="","",H28-$H$25) -> 
D29: 0.1 | E29: 10 | H29: =IF(OR(F29="",0),"",F29-G29) ->  | I29: =IF(H29="","",H29-$H$25) -> 
D30: 0.1 | E30: 10 | H30: =IF(OR(F30="",0),"",F30-G30) ->  | I30: =IF(H30="","",H30-$H$25) -> 
D31: 0.1 | E31: 10 | H31: =IF(OR(F31="",0),"",F31-G31) ->  | I31: =IF(H31="","",H31-$H$25) -> 
D32: 0.1 | E32: 10 | H32: =IF(OR(F32="",0),"",F32-G32) ->  | I32: =IF(H32="","",H32-$H$25) -> 
D33: 0.1 | E33: 10 | H33: =IF(OR(F33="",0),"",F33-G33) ->  | I33: =IF(H33="","",H33-$H$25) -> 
D34: 0.1 | E34: 10
D35: 0.1 | E35: 10
D36: 0.1 | E36: 10
D37: 0.1 | E37: 10
D38: 0.1 | E38: 10
D39: 0.1 | E39: 10
D40: 0.1 | E40: 10
D41: 0.1 | E41: 10
D42: 0.1 | E42: 10
D43: 0.1 | E43: 10
D44: 0.1 | E44: 10
D45: 0.1 | E45: 10

Sheet Glu-Fru
I1: Protocol A: Boehringer Mannheim®
I2: Pipette into cuvettes | K2: Blank | L2: Standard | M2: Sample volume
I3: DI water | K3: 2 | L3: 1.9 | M3: 1.9
I4: Sample or std solution | K4: --- | L4: 0.100 | M4: 0.1
I5: Solution 1 | K5: 1 | L5: 1 | M5: 1
I6: Mix and read absorbances (A1) after 3 mins @ 20 - 25°.
I7: Suspension 2 | K7: 0.02 | L7: 0.02 | M7: 0.02
I8: Mix and read absorbances (A2) after 10 to 15 mins @ 20 - 25°.
I9: Suspension 3 | K9: 0.02 | L9: 0.02 | M9: 0.02
I10: Mix and read absorbances (A3) after 10 to 15 mins.
I11: Protocol B: Generic
I12: Pipette into cuvettes | K12: Blank | L12: Standard | M12: Sample volume
I13: DI water | K13: 2 | L13: 1.9 | M13: 1.9
I14: Sample or std solution | K14: --- | L14: 0.100 | M14: 0.1
I15: Solution 1 (buffer) | K15: 0.1 | L15: 0.1 | M15: 0.1
I16: Solution 2 (NADP+/ATP | K16: 0.1 | L16: 0.1 | M16: 0.1
I17: Mix and read absorbances (A1) after 3 mins @ 20 - 25°.
I18: Suspension 3 | K18: 0.02 | L18: 0.02 | M18: 0.02
I19: Mix and read absorbances (A2) after min. 5 mins @ 20 - 25°.
I20: Suspension 4 | K20: 0.02 | L20: 0.02 | M20: 0.02
I21: Mix and read absorbances (A3) after 10 to 15 mins.
K22: Tube vol. less sample = | M22: =M13+M15+M16+M18+M20 -> 2.14
B26: Enter value | F26: Tube volume less sample mL
A27: Wavelength | B27: 365 | C27: Extinction coef. | D27: =IF(B27=365,3.5,IF(B27=340,6.3,"?Wavelength")) -> 3.5 | E27: Glu. vol = | F27: =IF($A$29="A",2.92,IF(A29="B",$M$22-$M$20,"Protocol?")) -> 2.12 | G27: Fru. vol. = | H27: =IF($A$29="A",2.94,IF(A29="B",$M$22,"Protocol?")) -> 2.14 | I27: Std mg/L = | J27: 0.493
A28: Protocol: Enter A or B | B28: Date | C28: Sample | D28: Sample volume (mL) | E28: Dilution (DF) | F28: A1 | G28: A2 | H28: A3 | I28: (A2 - A1) | J28: (A3 - A2) | K28: Glucose g/L | L28: Fructose g/L | M28: Total g/L | N28: Fraction as glucose
A29: B | C29: Blank | F29: 0 | G29: 0.001 | H29: 0.068 | I29: =IF(OR(F29="",G29=""),"",G29-F29) -> 0.001 | J29: =IF(OR(G29="",H29=""),"",H29-G29) -> 0.067
C30: std (0.5g/L) | D30: 0.1 | E30: 1 | F30: 0 | G30: 0.42 | H30: 0.47 | I30: =IF(OR(F30="",G30=""),"",(G30-F30)-I$29) -> 0.419 | J30: =IF(OR(G30="",H30=""),"",(H30-G30)-J$29) -> -0.017 | K30: =IF(I30="","",(I30*180.16*($F$27+$D30)*$E30)/($D$27*1000*$D30)) -> 0.4788035109 | L30: =IF(J30="","",(J30*180.16*($H$27+$D30)*$E30)/($D$27*1000*$D30)) -> -0.019601408 | M30: =IF(AND(K30="",L30=""),"",K30+L30) -> 0.4592021029 | N30: =IF(OR(K30=0,K30=""),"",K30/(L30+K30)) -> 1.042685798 | O30: =CONCATENATE("Error = ",INT((($K30-$J$27)*100)/$J$27)," %") -> Error = -3 %
C31: 2056-1 | D31: 0.05 | E31: 1 | F31: 0.045 | G31: 0.105 | H31: 2.864 | I31: 0.059 | J31: =IF(OR(G31="",H31=""),"",(H31-G31)-J$29) -> 2.692 | K31: =IF(I31="","",(I31*180.16*($F$27+$D31)*$E31)/($D$27*1000*$D31)) -> 0.131805056 | L31: =IF(J31="","",(J31*180.16*($H$27+$D31)*$E31)/($D$27*1000*$D31)) -> 6.069312439 | M31: =IF(AND(K31="",L31=""),"",K31+L31) -> 6.201117495 | N31: =IF(OR(K31=0,K31=""),"",K31/(L31+K31)) -> 0.02125504897 | O31: =IF(OR(G31>1,H31>1),"Dilute","OK") -> Dilute
C32: 2056-2 | D32: 0.01 | E32: 10 | F32: 0.025 | G32: 0.069 | H32: 2.019 | I32: 0.043 | J32: 1.883 | K32: 4.714529829 | L32: 208.391072 | M32: 213.1056018 | N32: 0.02212297466 | O32: =IF(OR(G32>1,H32>1),"Dilute","OK") -> Dilute
C33: X16-1 | D33: 0.03 | E33: 1 | F33: 0.029 | G33: 0.104 | H33: 2.537 | I33: 0.074 | J33: 2.366 | K33: 0.2729852952 | L33: 8.809343573 | M33: 9.082328869 | N33: 0.03005675077 | O33: Dilute
C34: X16-2 | D34: 0.1 | E34: 1 | F34: -0.029 | G34: 0.023 | H34: 0.558 | I34: 0.051 | J34: 0.468 | K34: 0.05827918629 | L34: 0.539615232 | M34: 0.5978944183 | N34: 0.09747404308 | O34: OK
D35: 0.1 | E35: 1 | O35: OK
D36: 0.1 | E36: 1 | O36: OK
D37: 0.1 | E37: 1 | I37: =IF(OR(F37="",G37=""),"",(G37-F37)-I$29) ->  | J37: =IF(OR(G37="",H37=""),"",(H37-G37)-J$29) ->  | M37: =IF(AND(K37="",L37=""),"",K37+L37) ->  | O37: OK
D38: 0.1 | E38: 1 | O38: OK
D39: 0.1 | E39: 1 | O39: OK
D40: 0.1 | E40: 1 | O40: OK
D41: 0.1 | E41: 1 | O41: OK
D42: 0.1 | E42: 1 | O42: OK
D43: 0.1 | E43: 1 | O43: OK
D44: 0.1 | E44: 1 | O44: OK
D45: 0.1 | E45: 1 | O45: OK
D46: 0.1 | E46: 1 | O46: OK
D47: 0.1 | E47: 1 | O47: OK
D48: 0.1 | E48: 1 | O48: OK

Sheet Malic acid
G1: Protocol A: R-Biopharm®
G2: Pipette into cuvettes | H2: Blank (mL) | I2: Standard (mL) | J2: Sample (mL)
G3: DI water | H3: 1 | I3: 0.9 | J3: 0.9
G4: Solution 1 | H4: 1 | I4: 1 | J4: 1
G5: Solution 2 | H5: 0.2 | I5: 0.2 | J5: 0.2
G6: Suspension 3 | H6: 0.01 | I6: 0.01 | J6: 0.01
G7: Sample solution | H7: --- | I7: --- | J7: 0.1
G8: Standard solution | H8: --- | I8: 0.1 | J8: ---
G9: Mix and read absorbances (A1) after 3 mins @ 20 - 25°.
G10: Solution 4 | H10: 0.01 | I10: 0.01 | J10: 0.01
G11: Mix and read absorbances (A2) after 5 - 10 mins.
G12: Protocol B: Generic (e.g. Megazyme®)
G13: Pipette into cuvettes | H13: Blank (mL) | I13: Standard (mL) | J13: Sample (mL)
G14: DI water | H14: 2.1 | I14: 2 | J14: 2
G15: Solution 1 | H15: 0.1 | I15: 0.1 | J15: 0.1
G16: Solution 2 | H16: 0.1 | I16: 0.1 | J16: 0.1
G17: Suspension 3 | H17: 0.02 | I17: 0.02 | J17: 0.02
G18: Sample solution | H18: --- | I18: --- | J18: 0.1
G19: Standard solution | H19: --- | I19: 0.1 | J19: ---
G20: Mix and read absorbances (A1) after 3 mins @ 20 - 25°.
G21: Suspension 4 | H21: 0.02 | I21: 0.02 | J21: 0.02
G22: Mix and read absorbances (A2) after 5 - 10 mins.
H23: Tube vol. less sample | I23: = | J23: =SUM($J$14:$J$21)-$J$18 -> 2.24
B24: Enter value | J24: Enter value
A25: Wavelength | B25: 340 | C25: Extinction coef. = | E25: =IF(B25=365,3.4,IF(B25=340,6.3,"?Wavelength")) -> 6.3 | F25: Tube volume (mL) = (less sample) | H25: =IF(A27="A",2.22,IF(A27="B",$J$23,"Protocol?")) -> 2.22 | I25: Std mg/L = | J25: 0.197
A26: Protocol: Enter A or B | B26: Date | C26: Sample | D26: Sample volume (mL) | E26: Dilution (DF) | F26: less sample vol. | G26: A2 | H26: DA (A2 - A1)sample - (A2 - A1)blank | I26: Malic acid (g L-1) | J26: Corrected for dilution
A27: A | C27: Blank | F27: 0.027 | G27: 0.04
C28: std (0.2g/L) | D28: 0.1 | E28: 1 | F28: 0.05 | G28: 0.46 | H28: =IF(OR(F28="",G28=""),"",($G28-$F28)-($G$27-$F$27)) -> 0.397 | I28: =IF(H28="","",(($H$25+$D28)*134.09*$H28/($E$25*$D28*1000))) -> 0.1960353232 | J28: =IF(I28="","",I28*E28) -> 0.1960353232 | K28: =IF($J28="","",CONCATENATE("Error = ",INT((($J28-$J$25)*100)/$J$25)," %")) -> Error = -1 %
D29: 0.1 | E29: 10 | F29: 0.655 | G29: 0.735 | H29: =IF(OR(F29="",G29=""),"",($G29-$F29)-($G$27-$F$27)) -> 0.067 | I29: =IF(H29="","",(($H$25+$D29)*134.09*$H29/($E$25*$D29*1000))) -> 0.03308404698 | J29: =IF(I29="","",I29*E29) -> 0.3308404698 | K29: =IF($I33="","",IF($I33>0.2,"Dilute","OK")) -> 
D30: 0.01 | E30: 1 | F30: 0.387 | G30: 0.427 | H30: 0.027 | I30: 0.1281517286 | J30: 0.1281517286 | K30: =IF($I34="","",IF($I34>0.2,"Dilute","OK")) -> 
E31: 1 | H31: =IF(OR(F31="",G31=""),"",($G31-$F31)-($G$27-$F$27)) -> 
E32: 1
E33: 1
E34: 1
E35: 1
E36: 1
E37: 1
E38: 1
E39: 1
E40: 1
E41: 1
E42: 1
E43: 1
E44: 1
E45: 1
E46: 1
E47: 1

Sheet Acetic acid
I1: Protocol A: Megazyme®
I2: Pipette into cuvettes | J2: Blank (mL) | K2: Standard (mL) | L2: Sample (mL)
I3: DI water | J3: 2.1 | K3: 2 | L3: 2
I4: Solution #1 | J4: 0.5 | K4: 0.5 | L4: 0.5
I5: Solution #2 | J5: 0.2 | K5: 0.2 | L5: 0.2
I6: Sample solution | J6: --- | K6: --- | L6: "0.100"
I7: Standard solution | J7: --- | K7: 0.1 | L7: ---
I8: Mix and read absorbances (A1) after 20 mins @ 20 - 25°C.
I9: Suspension #3 | J9: 0.02 | K9: 0.02 | L9: 0.02
I10: Mix and read absorbances (A2) after 3 - 5 mins.
I11: Solution #4 | J11: 0.02 | K11: 0.02 | L11: 0.02
I12: Mix and read absorb. (A3) afer 20 minutes @ 20 - 25°C.
I15: Protocol B: Generic e.g. R-Biopharm®
I16: Pipette into cuvettes | J16: Blank (mL) | K16: Standard (mL) | L16: Sample (mL)
I17: DI water
I18: Solution #1
I19: Solution #2
I20: Sample solution | J20: --- | K20: ---
I21: Standard solution | J21: --- | L21: ---
I22: Mix and read absorbances (A1) after 20 mins @ 20 - 25°C.
I23: Suspension #3
I24: Mix and read absorbances (A2) after 3 - 5 mins.
I25: Solution #4
I26: Mix and read absorb. (A3) afer 20 minutes @ 20 - 25°C.
J27: =SUM(J17:J25) -> 0 | K27: =SUM(K17:K25) -> 0 | L27: 0
B28: Protocol A or B | C28: Enter wavelength 340 or 365 | E28: Extinction coeff. | G28: Tube volume (mL) | H28: Enter Std conc. (g/L)
B29: A | C29: 365 | E29: =IF(C29=365,3.4,IF(C29=340,6.3,"?Wavelength")) -> 3.4 | G29: =IF($B$29="A",2.74,IF($B$29="B",$L$27,"Protocol?")) -> 2.74 | H29: 0.203
A30: Person | B30: Date | C30: Sample | D30: Sample volume (mL) | E30: Dilution (F) | F30: A1 | G30: A2 | H30: A3 | I30: (A2 - A1) | J30: (A3 - A1) | K30: DA | L30: Acetic acid (g L-1) | M30: Corrected for dilution
C31: Blank | F31: 0.097 | G31: 0.412 | H31: 0.423 | I31: =IF(OR($F31="",$G31=""),"",$G31-$F31) -> 0.315 | J31: =IF(OR($F31="",$H31=""),"",$H31-$F31) -> 0.326
C32: Stardard | D32: 0.1 | E32: 1 | F32: 0.096 | G32: 0.102 | H32: 0.51 | I32: =IF(OR($F32="",$G32=""),"",$G32-$F32) -> 0.006 | J32: =IF(OR($F32="",$H32=""),"",$H32-$F32) -> 0.414 | K32: =IF(OR($I32="",$J32="",$I$31="",$J$31=""),"",($J32-($I32*$I32/$J32))-(($J$31)-($I$31*$I$31/$J$31))) -> 0.3922842091 | L32: =IF($K32="","",60.05*($G$29+$D32)*$K32/($D32*$E$29*1000)) -> 0.1967674517 | M32: =IF(L32="","",$L32*$E32) -> 0.1967674517 | N32: =CONCATENATE("Error = ",INT(((M32-$H$29)*100)/$H$29)," %") -> Error = -4 %
C33: chardonnay | D33: 0.1 | E33: 10 | F33: 0.12 | G33: 0.156 | H33: 0.731 | I33: 0.036 | J33: 0.611 | K33: =IF(OR($I33="",$J33="",$I$31="",$J$31=""),"",($J33-($I33*$I33/$J33))-(($J$31)-($I$31*$I$31/$J$31))) -> 0.5872500527 | L33: =IF($K33="","",60.05*($G$29+$D33)*$K33/($D33*$E$29*1000)) -> 0.294561172 | M33: =IF(L33="","",$L33*$E33) -> 2.94561172 | N33: =IF($L33="","",IF($L33>0.2,"Dilute","OK")) -> Dilute
C34: chardonnay | D34: 0.01 | E34: 1 | F34: 0.11 | G34: 0.18 | H34: 0.579 | I34: 0.07 | J34: 0.469 | K34: 0.4369234045 | L34: 2.12213055 | M34: 2.12213055 | N34: =IF($L34="","",IF($L34>0.2,"Dilute","OK")) -> Dilute
C35: SB | D35: 0.1 | E35: 1 | F35: 0.04 | G35: 0.132 | H35: 0.21 | I35: 0.092 | J35: 0.17 | K35: 0.09858293035 | L35: 0.04944861796 | M35: 0.04944861796 | N35: OK
D36: 0.1 | E36: 1
D37: 0.1 | E37: 1
D38: 0.1 | E38: 1
D39: 0.1 | E39: 1
D40: 0.1 | E40: 1
D41: 0.1 | E41: 1
D42: 0.1 | E42: 1
D43: 0.1 | E43: 1
D44: 0.1 | E44: 1
D45: 0.1 | E45: 1
D46: 0.1 | E46: 1
D47: 0.1 | E47: 1
D48: 0.1 | E48: 1
D49: 0.1 | E49: 1
D50: 0.1 | E50: 1
D51: 0.1 | E51: 1

Sheet K+
A2: Person
A3: Date
B4: Standards (mg/L)
B5: 0 | C5: 2.5 | D5: 5 | E5: 7.5 | F5: 10
A6: Reading | B6: 0 | C6: 24 | D6: 49 | E6: 77 | F6: 99
B7: ="y =" & ROUND((INTERCEPT(B6:F6,B5:F5)),4) & "+" &ROUND((SLOPE(B6:F6,B5:F5)),4)&"x" -> y =-0.4+10.04x | D7: ="r^2 = "&ROUND(CORREL(B5:F5,B6:F6)^2,3) -> r^2 = 0.999 | E7: =SLOPE(B6:F6,B5:F5) -> 10.04
B8: where y = absorbance, x = std (mg/L)
E10: Enter C/NC | G10: mg/L | H10: mmol/L | I10: mg/g | J10: mg/berry
A11: Instrument C or NC? | B11: Sample | C11: Berry | D11: Sample Wt | E11: NC | G11: Corrected for calibration curve | H11: Wine | I11: [Berry] | J11: [Berry]
A12: Sample number | B12: Type | C12: count | D12: g | E12: Dilution | F12: Reading | H12: Must
H13: Juice
A14: shiraz | B14: Wine | E14: 100 | F14: 99 | G14: =IF(OR(E14="",F14=""),"",F14*E14/$E$7) -> 986.0557769 | H14: =IF(G14="","",G14/39.1) -> 25.21881782 | I14: =IF(AND($B14="Berry",C14<>"",$G14<>""),$G14*50/(1000*D14),"") ->  | J14: =IF(AND($B14="Berry",D14<>"",$G14<>""),$G14*50/(1000*C14),"") -> 
B15: Wine | E15: 100 | F15: 72 | G15: =IF(OR(E15="",F15=""),"",F15*E15/$E$7) -> 717.1314741 | H15: =IF(G15="","",G15/39.1) -> 18.34095842
B16: Berry | C16: 5 | D16: 7.2 | E16: 50 | F16: 77 | G16: 383.4661355 | H16: 9.807318042 | I16: =IF(AND($B16="Berry",C16<>"",$G16<>""),$G16*50/(1000*D16),"") -> 2.662959274 | J16: =IF(AND($B16="Berry",D16<>"",$G16<>""),$G16*50/(1000*C16),"") -> 3.834661355
B17: Berry | C17: 5 | D17: 7.5 | E17: 100 | F17: 95 | G17: 946.2151394 | H17: 24.19987569 | I17: =IF(AND($B17="Berry",C17<>"",$G17<>""),$G17*50/(1000*D17),"") -> 6.30810093 | J17: =IF(AND($B17="Berry",D17<>"",$G17<>""),$G17*50/(1000*C17),"") -> 9.462151394
B18: Must | E18: 100
E19: 100
E20: 100
E21: 100
E22: 100
E23: 100
E24: 100
E25: 100
E26: 100
E27: 100
E28: 100
E29: 100
E30: 100
E31: 100
E32: 100
E33: 100

Sheet Colour-Red grapes
A1: Note: Abbreviations as per Figure 4, Chapter 11 [sheet: Ref Flow f4]
A2: Date | B2: Cultivar | C2: Block ID | D2: Sample Person | E2: Analyst | F2: Sample wt (kg) | G2: Weight 200 berry subsamples (g) | I2: Subsample (Ss) 1 | M2: Subsample (Ss) 2
O3: pH 1.0 | Q3: pH 3.2
G4: Ss1 | H4: Ss2 | I4: Juice wt (g) | J4: °Brix | K4: Density | L4: ml/kg | M4: pH | N4: TA | O4: A520 | P4: A'520 | Q4: B520 | R4: B'520 | S4: B280 | T4: ΔA520 | U4: PA (mg/L) | V4: EA % | W4: Ps %
G5: 220 | I5: 130 | J5: 20 | K5: =IF(J5="","",0.9984+0.004653*$J5) -> 1.09146 | L5: =IF(OR(G5="",I5="",K5=""),"",I5*K5*1000/G5) -> 644.9536364 | O5: 0.51 | P5: 0.31 | Q5: 0.21 | R5: 0.11 | S5: 0.35 | T5: =IF(OR($O5="",$P5=""),"",$O5-$P5) -> 0.2 | U5: =IF($T5="","",$T5*1078) -> 215.6 | V5: =IF(OR($O5="",$P5="",$Q5="",$R5=""),"",(($O5-$P5)-($Q5-$R5))/($O5-$P5)) -> 0.5 | W5: =IF(OR(Q5="",R5="",S5=""),"",S5-((Q5-R5)*0.04)) -> 0.346
G6: 201 | I6: 105 | J6: 24.3 | K6: =IF(J6="","",0.9984+0.004653*$J6) -> 1.1114679 | L6: =IF(OR(G6="",I6="",K6=""),"",I6*K6*1000/G6) -> 580.6175597 | T6: =IF(OR($O6="",$P6=""),"",$O6-$P6) ->  | U6: =IF($T6="","",$T6*1078) ->  | V6: =IF(OR($O6="",$P6="",$Q6="",$R6=""),"",(($O6-$P6)-($Q6-$R6))/($O6-$P6)) ->  | W6: =IF(OR(Q6="",R6="",S6=""),"",S6-((Q6-R6)*0.04)) -> 

Sheet Red Flow chart f4

Sheet Colour-RedWine
A14: Enter data here
A15: Date | D15: Person | J15: pH | K15: 3.5
C16: Raw wine | K16: ="Wine adjusted to pH "&K15 -> Wine adjusted to pH 3.5
A17: Sample | F17: HCl | G17: Wine - SO2 | I17: Wine + SO2 | K17: pH3.5 | M17: pH3.5 - SO2 | O17: pH3.5 +SO2 | Q17: HCl
B18: DF | C18: E280 | D18: E420 | E18: E520 | F18: E520 | G18: E420 | H18: E520 | I18: E420 | J18: E520 | K18: E420 | L18: E520 | M18: E420 | N18: E520 | O18: E420 | P18: E520 | Q18: E520
A19: Record values here | B19: 10 | C19: 0.5 | D19: 0.21 | E19: 0.63 | F19: 0.56 | G19: 0.24 | H19: 0.7 | I19: 0.21 | J19: 0.25 | K19: 0.24 | L19: 0.55 | M19: 0.245 | N19: 0.565 | O19: 0.247 | P19: 0.503 | Q19: 0.32
A31: Read results here | B31: Control | I31: ="Adjusted to pH "&K15&" less SO2" -> Adjusted to pH 3.5 less SO2
B32: Density | C32: - SO2 | D32: + SO2 | E32: Hue | F32: Red Pigments | G32: % Red Pigments | H32: Phenolics | I32: Density | J32: Hue | K32: % Red Pigments
A33: =IF($A19="","",$A19) -> Record values here | B33: =IF(OR($D19="",$E19="",$B19=""),"",($D19+$E19)*$B19) -> 8.4 | C33: =IF(OR($G19="",$H19="",$B19=""),"",($G19+$H19)*$B19) -> 9.4 | D33: =IF(OR($I19="",J19=""),"",($I19+$J19)*$B19) -> 4.6 | E33: =IF(OR($E19="",$D19=""),"",$D19/$E19) -> 0.3333333333 | F33: =IF($F19="","",$F19*101) -> 56.56 | G33: =IF(OR($F19="",$E19="",$F19=""),"",(E19*B19)/($F19*101)) -> 0.1113861386 | H33: =IF(OR($B19="",$C19=""),"",($C19*101)-4) -> 46.5 | I33: =IF(OR($M19="",$N19="",$B19=""),"",($M19+$N19)*$B19) -> 8.1 | J33: =IF(OR($M19="",$N19=""),"",$M19/$N19) -> 0.4336283186 | K33: =IF(OR($P19="",$Q19="",$B19=""),"",$N19*$B19/($Q19*101)) -> 0.1748143564
A34: =IF($A20="","",$A20) ->  | B34: =IF(OR($D20="",$E20="",$B20=""),"",($D20+$E20)*$B20) ->  | C34: =IF(OR($G20="",$H20="",$B20=""),"",($G20+$H20)*$B20) ->  | D34: =IF(OR($I20="",J20=""),"",($I20+$J20)*$B20) ->  | E34: =IF(OR($E20="",$D20=""),"",$D20/$E20) ->  | F34: =IF($F20="","",$F20*101) ->  | G34: =IF(OR($F20="",$E20="",$F20=""),"",(E20*B20)/($F20*101)) ->  | H34: =IF(OR($B20="",$C20=""),"",($C20*101)-4) ->  | I34: =IF(OR($M20="",$N20="",$B20=""),"",($M20+$N20)*$B20) ->  | J34: =IF(OR($M20="",$N20=""),"",$M20/$N20) ->  | K34: =IF(OR($P20="",$Q20="",$B20=""),"",$N20*$B20/($Q20*101)) -> 

Sheet PhenolicsWhite
A12: Person
A13: Date
A14: Sample | B14: DF | C14: A280 | D14: A280 pvpp | E14: A320 | F14: A320 pvpp | G14: A420 | H14: A420 pvpp | I14: Total phenolics | J14: Total CAE | K14: Total flavonoids | L14: Brown pigments | M14: CAE eq. (mg/L) | N14: Flavonoids (mg/L)
A15: cab sav xy | B15: 10 | C15: 0.63 | D15: 0.22 | E15: 0.4 | F15: 0.35 | G15: 0.25 | H15: 0.11 | I15: =IF(OR(B15="",C15="",D15=""),"",($C15-$D15)*$B15) -> 4.1 | J15: =IF(OR(B15="",E15=""),"",($E15*$B15)-1.4) -> 2.6 | K15: =IF(OR($I15="",$J15="",$B15=""),"",($I15-(0.6*$J15/0.9))*$B15) -> 23.66666667 | L15: =IF(OR($B15="",$G15="",$H15=""),"",($G15-$H15)*$B15) -> 1.4 | M15: =IF(OR($B15="",$E15="",$F15=""),"",(($E15-$F15)*10/0.9)*$B15) -> 5.555555556 | N15: =IF(OR($B15="",$C15="",$D15="",$E15="",$F15=""),"",((($C15-$D15)-($E15-$F15))*$B15)*(60/(0.9*0.14))) -> 1714.285714
I16: =IF(OR(B16="",C16="",D16=""),"",($C16-$D16)*$B16) ->  | J16: =IF(OR(B16="",E16=""),"",($E16*$B16)-1.4) ->  | K16: =IF(OR($I16="",$J16="",$B16=""),"",($I16-(0.6*$J16/0.9))*$B16) ->  | L16: =IF(OR($B16="",$G16="",$H16=""),"",($G16-$H16)*$B16) ->  | M16: =IF(OR($B16="",$E16="",$F16=""),"",(($E16-$F16)*10/0.9)*$B16) ->  | N16: =IF(OR($B16="",$C16="",$D16="",$E16="",$F16=""),"",((($C16-$D16)-($E16-$F16))*$B16)*(60/(0.9*0.14))) -> 
I17: =IF(OR(B17="",C17="",D17=""),"",($C17-$D17)*$B17) ->  | J17: =IF(OR(B17="",E17=""),"",($E17*$B17)-1.4) ->  | K17: =IF(OR($I17="",$J17="",$B17=""),"",($I17-(0.6*$J17/0.9))*$B17) ->  | L17: =IF(OR($B17="",$G17="",$H17=""),"",($G17-$H17)*$B17) ->  | M17: =IF(OR($B17="",$E17="",$F17=""),"",(($E17-$F17)*10/0.9)*$B17) ->  | N17: =IF(OR($B17="",$C17="",$D17="",$E17="",$F17=""),"",((($C17-$D17)-($E17-$F17))*$B17)*(60/(0.9*0.14))) -> 
I34: =IF(OR(B34="",C34="",D34=""),"",($C34-$D34)*$B34) ->  | J34: =IF(OR(B34="",E34=""),"",($E34*$B34)-1.4) ->  | K34: =IF(OR($I34="",$J34="",$B34=""),"",($I34-(0.6*$J34/0.9))*$B34) ->  | L34: =IF(OR($B34="",$G34="",$H34=""),"",($G34-$H34)*$B34) ->  | M34: =IF(OR($B34="",$E34="",$F34=""),"",(($E34-$F34)*10/0.9)*$B34) ->  | N34: =IF(OR($B34="",$C34="",$D34="",$E34="",$F34=""),"",((($C34-$D34)-($E34-$F34))*$B34)*(60/(0.9*0.14))) -> 

Sheet Total phenols
C14: Gallic acid standard curve mg/L
C15: 0 | D15: 50 | E15: 100 | F15: 150 | G15: 250 | H15: 500
B16: Absorbance | C16: 0 | D16: 0.08 | E16: 0.15 | F16: 0.22 | G16: 0.38 | H16: 0.755
C17: ="y = "&ROUND(INTERCEPT(C16:H16,C15:H15),4)&" + "&ROUND(SLOPE(C16:H16,C15:H15),6)&" x" -> y = 0.0001 + 0.001509 x | F17: ="r^2 = "&ROUND(CORREL(C15:H15,C16:H16)^2,4) -> r^2 = 0.9998 | H17: =SLOPE(C16:H16,C15:H15) -> 0.001509160305
C18: where y = Absorbance, x = Gallic Acid mg/L
B20: Person
B21: Date
B22: Sample | C22: DF | D22: OD765 | E22: Gallic acid eq. mg/L
B23: syrah | C23: 10 | D23: 0.35 | E23: =IF(OR(C23="",D23=""),"",$D23*$C23/($H$17)) -> 2319.17046
C24: 10 | E24: =IF(OR(C24="",D24=""),"",$D24*$C24/($H$17*1000)) -> 
C25: 10 | G25: Wines | I25: mg/L
C26: 10 | G26: Thompson Seedless | I26: 230
C27: 10 | G27: Tinta Madeira | I27: 741
C28: 10 | G28: Zinfandel | I28: 3177
C29: 10 | G29: Pinot noir | I29: 2082
C30: 10 | G30: Calzin | I30: 2210
C31: 10 | G31: Carignane | I31: 1385
C32: 10
C33: 10
C34: 10
C35: 10
C36: 10
C37: 10
C38: 10
C39: 10
C40: 10
C41: 10
C42: 10

Sheet Tannins
K2: Part | L2: Sample | M2: Methyl cellulose | N2: (NH4)2SO4 | O2: DI water
L3: mL | M3: mL | N3: mL | O3: mL
J4: Wine | K4: Control | L4: 0.05 | M4: 0 | N4: 0.4 | O4: 1.55
K5: Test | L5: 0.05 | M5: 0.6 | N5: 0.4 | O5: 0.95
J6: Grape | K6: Control | L6: 0.2 | M6: 0 | N6: 0.4 | O6: 1.4
K7: Test | L7: 0.2 | M7: 0.6 | N7: 0.4 | O7: 0.8
K9: (-) epichatechin mg/L (µg/mL)
K10: 0 | L10: 50 | M10: 100 | N10: 150 | O10: 200 | P10: 250
J11: Reading | K11: 0 | L11: 0.139 | M11: 0.283 | N11: 0.421 | O11: 0.562 | P11: 0.705
K12: =IF(K11:P11="","","y = "&ROUND(INTERCEPT(K11:P11,K10:P10),4)&" + "&ROUND(SLOPE(K11:P11,K10:P10),6)&" x") -> y = -0.0006 + 0.002818 x | N12: =IF(K11:P11="","","r^2 = "&ROUND(CORREL(K10:P10,K11:P11)^2,4)) -> r^2 = 1 | P12: =SLOPE(K11:P11,K10:P10) -> 0.002818285714
K13: where y = OD, x = epicatchin µg/mL (mg/L)
A14: Person
A15: Date
A16: Sample | B16: Type | C16: Grape sample wt (g) | D16: Grape sample volume (mL) | E16: DF | F16: OD280 blank | G16: OD280 Methyl Cellulose | H16: ΔOD280 | I16: Wine tannin g/L (-) epichatechin | J16: Grape tannin mg/g
A17: syrah | B17: wine | E17: 40 | F17: 0.45 | G17: 0.21 | H17: =IF(OR($E17="",$F17="",$G17=""),"",($F17-$G17)*$E17) -> 9.6 | I17: =IF(H17="","",IF(B17="Wine",$H17/($P$12*1000),"")) -> 3.406326034 | J17: =IF(H17="","",IF(B17="berry",$H17*$D17/$C17,"")) -> 
A18: syrah | B18: berry | C18: 250 | D18: 150 | E18: 10 | F18: 0.655 | G18: 0.31 | H18: =IF(OR($E18="",$F18="",$G18=""),"",($F18-$G18)*$E18) -> 3.45 | I18: =IF(H18="","",IF(B18="Wine",H18/($P$12*1000),"")) ->  | J18: =IF(H18="","",IF(B18="berry",$H18*$D18/$C18,"")) -> 2.07
H19: =IF(OR($E19="",$F19="",$G19=""),"",($F19-$G19)*$E19) ->  | I19: =IF(H19="","",IF(B19="Wine",H19/(#REF!*1000),"")) ->  | J19: =IF(H19="","",IF(B19="berry",$H19*$D19/$C19,"")) -> 
I20: =IF(H20="","",IF(B20="Wine",H20/(#REF!*1000),"")) -> 
I21: =IF(H21="","",IF(B21="Wine",H21/(#REF!*1000),"")) -> 
I22: =IF(H22="","",IF(B22="Wine",H22/(#REF!*1000),"")) -> 
I23: =IF(H23="","",IF(B23="Wine",H23/(#REF!*1000),"")) -> 
I24: =IF(H24="","",IF(B24="Wine",H24/(#REF!*1000),"")) -> 
I25: =IF(H25="","",IF(B25="Wine",H25/(#REF!*1000),"")) -> 
I26: =IF(H26="","",IF(B26="Wine",H26/(#REF!*1000),"")) -> 
I27: =IF(H27="","",IF(B27="Wine",H27/(#REF!*1000),"")) -> 
I28: =IF(H28="","",IF(B28="Wine",H28/(#REF!*1000),"")) -> 
I29: =IF(H29="","",IF(B29="Wine",H29/(#REF!*1000),"")) -> 
I30: =IF(H30="","",IF(B30="Wine",H30/(#REF!*1000),"")) -> 
I31: =IF(H31="","",IF(B31="Wine",H31/(#REF!*1000),"")) -> 
I32: =IF(H32="","",IF(B32="Wine",H32/(#REF!*1000),"")) -> 
I33: =IF(H33="","",IF(B33="Wine",H33/(#REF!*1000),"")) -> 
I34: =IF(H34="","",IF(B34="Wine",H34/(#REF!*1000),"")) -> 
I35: =IF(H35="","",IF(B35="Wine",H35/(#REF!*1000),"")) -> 
I36: =IF(H36="","",IF(B36="Wine",H36/(#REF!*1000),"")) -> 

Sheet Ebulliometry
A17: Person
A18: Date
A19: Sample | B19: Dilution | C19: T1 °C | D19: T2 °C | E19: ΔT | F19: mL/100 mL
B20: 2 | C20: 97.2 | D20: 100.5 | E20: =IF(OR($C20="",$D20=""),"",$D20-$C20) -> 3.3 | F20: =IF(OR(B20="",E20=""),"",(0.0105+0.9189*E20+0.0502*E20*E20)*B20) -> 7.179096
E21: =IF(OR($C21="",$D21=""),"",$D21-$C21) ->  | F21: =IF(OR(B21="",E21=""),"",(0.0105+0.9189*E21+0.0502*E21*E21)*B21) -> 

Sheet Sheet14
